Cogmind - Beta 15 @@@ ROGUE MODE // 2025.10.01 @ 20:02:06 Player: beans Result: Destroyed by Y-45 Defender with Heavy Assault Rifle Performance ------------- Evolutions (1) 500 Regions Visited (2) 400 Robots Destroyed (21) 105 Value Destroyed (454) 454 Prototype IDs (0) 0 Alien Tech Used (0) 0 Bonus (0) 0 TOTAL SCORE: 1459 Bonus ------- None Cogmind --------- Core Integrity 0/400 Matter 203/300 Energy 98/100 System Corruption 0% Temperature Cool (18) Movement Core (50) Location -9/Materials Parts ------- > --- POWER (2) -------- (None) > --- PROPULSION (3) --- (None) > --- UTILITY (2) ------ Hacking Suite > --- WEAPON (2) ------- (None) > --- INVENTORY (5) ---- Ion Engine Cooling System Cooling System Authchip [Device] Authchip [Weapon] Peak State ------------ > --- POWER ------------ Light Nuclear Core > --- PROPULSION ------- Hover Unit Hover Unit Hover Unit > --- UTILITY ---------- Cooling System Hacking Suite > --- WEAPON ----------- Light EM Pulse Cannon Light EM Pulse Cannon > --- INVENTORY -------- Cooling System Assault Rifle Assault Rifle [Rating: 15] Favorites ----------- Power Light Nuclear Core Engine Ion Engine Power Core Light Nuclear Core Propulsion Light Treads Treads Light Treads Hover Unit Hover Unit Utility Cooling System Device Cooling System Hackware Hacking Suite Protection Medium Armor Plating Weapon Light EM Pulse Cannon Energy Cannon Light EM Pulse Cannon Ballistic Gun Assault Rifle Build | -11 -10 -9 ------- Run | Yrd Mat Mat Slots Evolved 2 | . . 2 Power 1 | . . 1 Propulsion 1 | . . 1 Utility . | . . . Weapon . | . . . Parts Attached 16 | 5 9 2 Power 2 | 1 1 . Engine 1 | 1 . . Core 1 | . 1 . Reactor . | . . . Propulsion 7 | 2 4 1 Treads 4 | 2 2 . Leg . | . . . Wheel . | . . . Hover 3 | . 2 1 Flight . | . . . Utility 3 | . 2 1 Device 1 | . 1 . Storage . | . . . Processor . | . . . Hackware 1 | . 1 . Protection 1 | . . 1 Artifact . | . . . Weapon 4 | 2 2 . Energy Gun . | . . . Energy Cannon 2 | . 2 . Ballistic Gun 2 | 2 . . Ballistic Cannon . | . . . Launcher . | . . . Special Weapon . | . . . Impact Weapon . | . . . Slashing Weapon . | . . . Piercing Weapon . | . . . Special Melee Weapon . | . . . Unidentified Prototypes . | . . . Corrupted Parts 1 | . 1 . System Corruption 1 | . 1 . Parts Lost 8 | . . 8 Power 1 | . . 1 Propulsion 3 | . . 3 Utility 1 | . . 1 Weapon 3 | . . 3 Highest Loss Streak 4 | . . 4 To Critical Strikes . | . . . Average Backups 3 | . 3 3 Power . | . . . Propulsion . | . . . Utility 1 | . 1 2 Weapon 1 | . 1 1 Tool/Special . | . . . Unused Backups 4 | . . 4 Power 1 | . . 1 Propulsion . | . . . Utility 3 | . . 3 Weapon . | . . . Tool/Special . | . . . Average Slot Usage (%) 66 | . 70 55 Engine 2 | . 4 . Core 8 | . 10 3 Treads 6 | . 9 . Hover 5 | . 1 17 Device 10 | . 12 7 Hackware 6 | . 4 11 Energy Cannon 21 | . 25 7 Ballistic Gun 3 | . 2 7 Peak Build Rating 15 | 4 14 15 Average Rating 9 | 2 9 9 On Entrance 5 | . 3 14 Naked Turns . | . . . Heaviest Build 15 | 9 15 15 Greatest Support 40 | 3 40 18 Greatest Overweight (x) 4 | 2 4 1 Average Overweight (x) 1 | 1 1 . Largest Inventory Capacity 5 | 5 5 5 Average Capacity 5 | 5 5 5 Most Carried 5 | 4 5 5 Average Carried 3 | . 3 3 Final Capacity 5 | 5 5 5 Final Carried 5 | . 4 5 Class Distribution -------------------- 86% | Mutant 13% | Scavenger-Mutant Dominant Class ---------------- Mutant | -10/Materials Mutant | -9/Materials Resources | -11 -10 -9 ----------- Run | Yrd Mat Mat Matter Collected 352 | 140 190 22 Remotely . | . . . Salvage Created 700 | . 518 182 Parts 45 | . 34 11 Haulers Intercepted 2 | . 2 . Recyclers Shooed 2 | . 2 . Parts Field Recycled . | . . . Retrieved Matter . | . . . Parts Self-Destructed . | . . . Prevented . | . . . Kills | -11 -10 -9 ------- Run | Yrd Mat Mat Combat Hostiles Destroyed 13 | . 8 5 Guns 3 | . . 3 Cannons 9 | . 7 2 AOE 1 | . 1 . Classes Destroyed 8 | . 7 1 Builder 2 | . 2 . Hauler 2 | . 2 . Recycler 1 | . 1 . Operator 1 | . 1 . Watcher 2 | . 2 . Swarmer 5 | . 3 2 Grunt 7 | . 5 2 Sentry 1 | . . 1 Best Kill Streak 5 | . 5 3 Combat Bots Only 3 | . 3 3 Max Kills in Single Turn 2 | . 2 1 Gunslinging . | . . . Exploded 1 | . 1 . Melee . | . . . Uniques/NPCs Destroyed . | . . . Combat | -11 -10 -9 -------- Run | Yrd Mat Mat Hostile Shots Fired 155 | . 25 130 Missed 58 | . 8 50 Hits 97 | . 17 80 Melee 4 | . . 4 Projectile 93 | . 17 76 Critical Strikes 5 | . . 5 Damage Taken 1108 | . 201 907 Core 461 | . 58 403 Absorbed by Shields . | . . . Core Remaining (%) 88 | 100 76 . Volleys Fired 42 | . 23 19 Largest 2 | . 2 2 Hottest 112 | . 112 112 Shots Fired 79 | . 46 33 Gun 24 | . . 24 Cannon 55 | . 46 9 Launcher . | . . . Special . | . . . Kinetic 24 | . . 24 Thermal . | . . . Explosive . | . . . Electromagnetic 55 | . 46 9 Robot Hit Streak 7 | . 7 4 Robot Miss Streak 7 | . 2 7 Penetration Max . | . . . Secondary Targets . | . . . Shots Hit Robots 37 | . 21 16 Core Hits 24 | . 17 7 Critical Kills . | . . . Critical Parts Destroyed . | . . . Critical Strikes 1 | . 1 . Corrupt 1 | . 1 . Melee Attacks . | . . . Impact . | . . . Slashing . | . . . Piercing . | . . . Sneak Attacks . | . . . Combat Hostiles . | . . . Follow-up Attacks . | . . . Damage Inflicted 1334 | . 1106 228 Guns 160 | . . 160 Cannons 586 | . 518 68 Explosions 588 | . 588 . Melee . | . . . Ramming . | . . . Kinetic 160 | . . 160 Thermal 291 | . 291 . Explosive 297 | . 297 . Electromagnetic 586 | . 518 68 Impact . | . . . Slashing . | . . . Piercing . | . . . Highest Corruption 3 | . 3 . Average Corruption 2 | . 2 . Corruption Purged . | . . . Corruption Blocked . | . . . Effects 4 | . 4 . Message Errors 1 | . 1 . Matter Fused 1 | . 1 . Energy Discharges 2 | . 2 . Overload Shots . | . . . Overflow Damage 25 | . 25 . Projectiles 2 | . 2 . Explosions 23 | . 23 . Melee . | . . . Knockbacks . | . . . Impact . | . . . Kinetic . | . . . Secondary . | . . . Self-Inflicted Damage 32 | . 32 . Shots 1 | . 1 . Rammed . | . . . Targets Rammed . | . . . Kicked . | . . . Crushed . | . . . Highest Temperature 51 | . 51 12 Average Temperature 12 | . 14 5 Received Heat Transfer 294 | . 66 228 Siege Activations . | . . . Martial Activations . | . . . Shielding Activations . | . . . Robots Disrupted . | . . . Combat Hostiles . | . . . Robots Corrupted . | . . . Combat Hostiles . | . . . Parts Fried 2 | . 2 . Impact Corruptions . | . . . Robots Melted . | . . . Combat Hostiles . | . . . Parts Melted . | . . . Heat Transferred 400 | . 400 . Parts Sabotaged . | . . . Parts Stolen . | . . . Parts Stripped . | . . . Power Chain Reactions 5 | . 5 . Alert | -11 -10 -9 ------- Run | Yrd Mat Mat Maximum Alert Level . | . . . Low Security (%) 100 | 100 100 100 Level 1 . | . . . Level 2 . | . . . Level 3 . | . . . Level 4 . | . . . Level 5 . | . . . High Security . | . . . Max Security . | . . . Peak Influence 169 | . 169 100 Initial 13 | . . 13 Average 60 | . 75 33 Influence Increases 502 | . 342 160 Destroy 0b10 Robot/C 260 | . 160 100 Destroy 0b10 Robot/NC 40 | . 40 . Destroy Leader 68 | . 38 30 Disable Machine 60 | . 60 . Destroy Structure 29 | . 29 . Partial Spotted 15 | . 15 . Lose Combat Pursuer 30 | . . 30 Influence Decreases 462 | . 309 153 Entered New Map 20 | . . 20 Time Decay 250 | . 190 60 Lost Part 73 | . . 73 Purge Threat 119 | . 119 . Squads Dispatched 3 | . 1 2 Investigation . | . . . Extermination . | . . . Reinforcement 3 | . 1 2 Assault . | . . . Garrison . | . . . Intercept . | . . . Searches Triggered . | . . . Construction Impeded . | . . . Haulers Reinforced . | . . . Active Scanning Responses . | . . . Cargo Convoy Interrupts . | . . . Stealth | -11 -10 -9 --------- Run | Yrd Mat Mat Distress Signals 3 | . . 3 Communications Jammed . | . . . Distress Signals . | . . . Times Spotted 38 | . 15 23 Peak Tracking Total 12 | . 3 12 Tactical Retreats 1 | . . 1 Traps | -11 -10 -9 ------- Run | Yrd Mat Mat Traps Triggered 2 | . 2 . Indirectly . | . . . Trap Hack Attempts . | . . . Triggered . | . . . Disarmed . | . . . Reprogrammed . | . . . Reused . | . . . Traps Extracted . | . . . Installed . | . . . Triggered . | . . . Machines | -11 -10 -9 ---------- Run | Yrd Mat Mat Machines Disabled 4 | . 4 . Max in Single Turn 2 | . 2 . Machines Repaired . | . . . Machines Dismantled . | . . . Machines Sabotaged . | . . . Overloaded Fab Kills . | . . . Hacking | -11 -10 -9 --------- Run | Yrd Mat Mat Machines Accessed 1 | . 1 . Terminals 1 | . 1 . Fabricators . | . . . Repair Stations . | . . . Recycling Units . | . . . Scanalyzers . | . . . Garrison Access . | . . . Total Hacks 2 | . 2 . Successful 1 | . 1 . Failed 1 | . 1 . Catastrophic . | . . . Database Lockouts . | . . . Manual . | . . . Terminals 2 | . 2 . Fabricators . | . . . Repair Stations . | . . . Recycling Units . | . . . Scanalyzers . | . . . Garrison Access . | . . . Terminal Hacks 1 | . 1 . Unreport Threat 1 | . 1 . Fabricator Hacks . | . . . Repair Station Hacks . | . . . Recycling Unit Hacks . | . . . Scanalyzer . | . . . Garrison Access Hacks . | . . . Unauthorized Hacks . | . . . Terminals . | . . . Fabricators . | . . . Repair Stations . | . . . Recycling Units . | . . . Scanalyzers . | . . . Garrison Access . | . . . Data Cores Recovered 1 | . 1 . Used . | . . . Hacking Detections . | . . . Full Trace Events . | . . . Feedback Events . | . . . Feedback Blocked . | . . . Robot Schematics Acquired . | . . . Robots Built . | . . . Authchips . | . . . Time . | . . . Total Robot Build Rating . | . . . Part Schematics Acquired . | . . . Parts Built . | . . . Authchips . | . . . Time . | . . . Total Part Build Rating . | . . . Parts Repaired . | . . . Time . | . . . Parts Recycled . | . . . Recycled Matter . | . . . Retrieved Matter . | . . . Retrieved Components . | . . . Parts Scanalyzed . | . . . Part Schematics Acquired . | . . . Parts Damaged . | . . . Bothacking | -11 -10 -9 ------------ Run | Yrd Mat Mat Used RIF Installer . | . . . Robots Hacked . | . . . Non-combat . | . . . Combat . | . . . Robot Hacks Applied . | . . . Relay Couplers Released . | . . . Fabnet Peak Effective % . | . . . Robots Rewired . | . . . Allies Hacked . | . . . Hacks Repelled . | . . . Allies | -11 -10 -9 -------- Run | Yrd Mat Mat Total Allies . | . . . Largest Group . | . . . Highest-Rated Group . | . . . Highest-Rated Ally . | . . . Total Orders . | . . . Ally Attacks . | . . . Total Damage . | . . . Kills . | . . . Allies Corrupted . | . . . Allies Melted . | . . . Intel | -11 -10 -9 ------- Run | Yrd Mat Mat Active Infowar (turns) . | . . . Robot Analysis Total . | . . . Derelict Logs Recovered . | . . . Drone Launches . | . . . Drone Recoveries . | . . . Exploration | -11 -10 -9 ------------- Run | Yrd Mat Mat Turns Passed 681 | 45 480 156 Spaces Moved 378 | 34 195 149 Core 173 | 34 83 56 Treads 80 | . 80 . Legs . | . . . Wheels . | . . . Hover 125 | . 32 93 Flight . | . . . Fastest Speed 50 | 50 116 50 Average Speed 127 | 102 188 53 Slowest Speed 250 | 150 250 100 Overloaded Moves . | . . . Propulsion Burnouts . | . . . Robots Hopped . | . . . Potential Cave-ins . | . . . Cave-ins Triggered . | . . . Exploration Rate (%) 24 | 4 53 17 Regions Visited 2 Branch Regions . Pre-discovered Areas . | . . . Known Exits Taken . | . . . Unknown Exits Taken 2 | 1 1 . Scrap Searched . | . . . Spaces Dug . | . . . Terrain Destroyed 28 | . 28 . Melee . | . . . Projectile . | . . . AOE 28 | . 28 . Terrain Rammed . | . . . Walls Destroyed . | . . . Machines Disabled . | . . . Actions | -11 -10 -9 --------- Run | Yrd Mat Mat Total 496 | 45 260 191 Wait 33 | . 21 12 Move 376 | 33 194 149 Hop . | . . . Pick Up 19 | 5 10 4 Fast Attach 3 | . 1 2 Attach 13 | 5 5 3 Detach . | . . . Swap 4 | . 3 1 Drop 6 | 2 3 1 Fire 42 | . 23 19 Melee . | . . . Ram . | . . . Kick . | . . . Crush . | . . . Escape Stasis . | . . . Rewire . | . . . Trap . | . . . Miscellaneous . | . . . Route ------- -11/Scrapyard -10/Materials (discovered 2 exits: [*Mat] / [*Min]) -9/Materials History --------- Turn | Location | Event 6 | -11/Scrapyard | Discovered new exit (range 15) 46 | -11/Scrapyard | Entered Materials 312 | -10/Materials | Build established: Mutant 359 | -10/Materials | Discovered new exit (range 14) 455 | -10/Materials | Discovered new exit (range 16) 526 | -10/Materials | Entered another Materials area 526 | -9/Materials | Evolved 2 slots: Power x1, Propulsion x1 628 | -9/Materials | Lost 4 parts (1p2n1w) 655 | -9/Materials | Core integrity fell below 50% 675 | -9/Materials | Core integrity fell below 20% 682 | -9/Materials | Destroyed by Y-45 Defender with Heavy Assault Rifle Last Messages --------------- R-06 Scavenger inserts Lgt. Treads into recycling unit. G-34 Mercenary destroyed. Med. Armor Plating severed. R-06 Scavenger inserts Med. Storage Unit into recycling unit. Critical hit (Burn: +37). Acquired Med. Armor Plating. Med. Armor Plating destroyed. R-06 Scavenger inserts Lgt. Treads into recycling unit. Assault Rifle destroyed. R-06 Scavenger inserts Lgt. EM Pulse Cannon into recycling unit. R-06 Scavenger collects Aluminum Leg. R-06 Scavenger inserts Aluminum Leg into recycling unit. R-06 Scavenger collects Authchip [Processor]. K-01 Serf collects debris. Map ----- +----------------------------------------------------+ | | | | | | | | | | | | | | | | | | | | | | | | | ???????????????????????????????????????????????? | | ???????????????????????????????????????????????? | | ???????????????????????????????????????????????? | | ???????????????????????????????????????????????? | | ???????????????????????????????????????????????? | | ???????????????????????????????????????????????? | | ???????????????????????????????????????????????? | | ???????????????????????????????????????????????? | | ???????????????????????????????????????????????? | | ???????????????????????????????????????????????? | | ????????????????????????????????????????????#### | | ??????????????????????????? ##??????????????# | | ??????????????###+####### #??????????????# | | ??????????????# @g #??????????????# | | ??????????????# gY #??????????????# | | ???????????####### ##### #??????????????# | | ???????????+ # #????#####???############ | | ???????????# + +????????????# "" ## | | ???????????# # #????????????# ""S # | | ???????????#| ??# #????????????# "" # | | ???????????# ????# #????????????# + " | | ?????????????????# #????????????# """ """ # | | ???????# ######## #??#######???# """ """ # | | ???????# #? = ???# """ """ ### # | | ???????# #? ???# #?# # | | ???????##+######## # ????###########?# # | | ?????????????????# # """""??????????????????# # | | ?????????????????+ + """""??????????????????# # | | ?????????????????# # """""??????????????????# # | | ?????????????????# # ???????????######+# | | ?????????????????# #? ??????????# # | | ?????????????????# #?########??????????#""" = # | | ?????????????????# #????? ???????????#""" # | | ?????????????????# #????"" ????????????#""" # | | ?????????????????# #???"""?????????????# # | | ?????????????????# # ???????????? # # | | ?????????######### ###+#############/######/### | | ?????????# % = | +----------------------------------------------------+ Best States ------------- Heat Dissipation 50 Energy Generation 14 Energy Capacity 250 Matter Stores 300 Matter Capacity 300 Sight Range 16 Terrain Scan Density 10 Armor Coverage 225 Evasion (%) 54 Recoil Reduction 2 Offensive Hacking 10 Authchip Count 2 Item Schematics ----------------- None Robot Schematics ------------------ None Fabricated ------------ Nothing Repaired ---------- Nothing Alien Tech Used ----------------- None Achievements -------------- None Challenges ------------ None Game ------ Seed CarbideMasterNukerbomber Manual? 0 Play Time 00:08:07 Cumulative 165.8 hours Start 2025.10.01 @ 17:50:45 End 2025.10.01 @ 20:02:06 Sessions 1 Manual Loads 0 Difficulty Rogue Special Mode None Game No. 528 Rogue 527 Adventurer 1 Explorer 0 Win Type - Total 0 Types 0/0/0/0/0/0/0/0/0/0 Lore% 58 Gallery% 55 Achievement% 43 Wizard Run 0 Options --------- Layout 1 ASCII 0 Keyboard 0 Movement Mouse Keybinds 0 Fullscreen 2 Font 24/Smallcaps Map View 50x35 Zoom Use 0% Tactical HUD 0 Map Filters NONE Filters NONE Steam 1 RUN: 96361988-a6e4-476f-86c0-1da714f5a160